Cogmind - Beta 13 X1 @@@ ROGUE MODE // 2023.08.07 @ 23:13:23 Player: Luna Result: Destroyed by 15-CHJ(R) with Subdweller Machine Gun Performance ------------- Evolutions (0) 0 Regions Visited (2) 400 Robots Destroyed (9) 45 Value Destroyed (170) 170 Prototype IDs (0) 0 Alien Tech Used (0) 0 Bonus (0) 0 TOTAL SCORE: 615 Bonus ------- None Cogmind --------- Core Integrity 0/250 Matter 20/300 Energy 100/100 System Corruption 0% Temperature Cool (6) Movement Core (100) Ox1 Location -10/Subcaves Parts ------- > --- POWER (1) -------- (None) > --- PROPULSION (2) --- (None) > --- UTILITY (2) ------ Small Storage Unit Seismic Detector > --- WEAPON (2) ------- (None) > --- INVENTORY (8) ---- Light Ion Engine Aluminum Leg Aluminum Leg Wheel Wheel Subdweller Monowheel EM Pulse Gun Battle Cannon Peak State ------------ > --- POWER ------------ Subdweller Power Source > --- PROPULSION ------- Light Treads Light Treads > --- UTILITY ---------- Small Storage Unit Seismic Detector > --- WEAPON ----------- Assault Rifle Subdweller Shrapnel Launcher > --- INVENTORY -------- Light Ion Engine Aluminum Leg Aluminum Leg Wheel Wheel Subdweller Monowheel EM Pulse Gun Battle Cannon [Rating: 10] Favorites ----------- Power Light Ion Engine Engine Light Ion Engine Propulsion Light Treads Treads Light Treads Wheel Wheel Utility Small Storage Unit Device Seismic Detector Storage Small Storage Unit Weapon Assault Rifle Energy Gun Small Laser Ballistic Gun Assault Rifle Ballistic Cannon Battle Cannon Launcher Subdweller Shrapnel Launcher Build | -11 -10 -10 ------- Run | Jun Mat Sub Slots Evolved . | . . . Power . | . . . Propulsion . | . . . Utility . | . . . Weapon . | . . . Parts Attached 13 | 8 . 5 Power 2 | 1 . 1 Engine 2 | 1 . 1 Core . | . . . Reactor . | . . . Propulsion 3 | 3 . . Treads 2 | 2 . . Leg . | . . . Wheel 1 | 1 . . Hover . | . . . Flight . | . . . Utility 2 | 2 . . Device 1 | 1 . . Storage 1 | 1 . . Processor . | . . . Hackware . | . . . Protection . | . . . Artifact . | . . . Weapon 6 | 2 . 4 Energy Gun 1 | 1 . . Energy Cannon . | . . . Ballistic Gun 1 | 1 . . Ballistic Cannon 2 | . . 2 Launcher 2 | . . 2 Special Weapon . | . . . Impact Weapon . | . . . Slashing Weapon . | . . . Piercing Weapon . | . . . Special Melee Weapon . | . . . Unidentified Prototypes . | . . . Parts Lost 6 | . . 6 Power 2 | . . 2 Propulsion 2 | . . 2 Utility . | . . . Weapon 2 | . . 2 Highest Loss Streak 5 | . . 5 To Critical Strikes 1 | . . 1 Average Slot Usage (%) 98 | . 100 97 Engine 13 | . 14 13 Treads 27 | . 28 27 Device 14 | . 14 14 Storage 14 | . 14 14 Energy Gun 9 | . 14 8 Ballistic Gun 13 | . 14 13 Ballistic Cannon 3 | . . 3 Launcher 1 | . . 1 Naked Turns . | . . . Heaviest Build 21 | 12 12 21 Greatest Support 40 | 20 20 40 Greatest Overweight (x) . | . . . Average Overweight (x) . | . . . Largest Inventory Capacity 8 | 8 8 8 Average Capacity 7 | 7 8 8 Most Carried 8 | 7 7 8 Average Carried 6 | 5 7 7 Final Capacity 8 | 8 8 8 Final Carried 8 | 7 7 8 Class Distribution -------------------- 100% | Mutant Dominant Class ---------------- Mutant | -10/Materials Mutant | -10/Subcaves Resources | -11 -10 -10 ----------- Run | Jun Mat Sub Matter Collected 364 | 307 . 57 Remotely . | . . . Salvage Created 146 | 87 . 59 Parts 15 | 7 . 8 Haulers Intercepted . | . . . Recyclers Shooed . | . . . Parts Field Recycled . | . . . Retrieved Matter . | . . . Parts Self-Destructed 13 | . . 13 Prevented . | . . . Kills | -11 -10 -10 ------- Run | Jun Mat Sub Combat Hostiles Destroyed 6 | . . 6 Guns 1 | . . 1 Cannons 1 | . . 1 AOE 4 | . . 4 Classes Destroyed 4 | 2 . 2 Tunneler 2 | 2 . . Recycler 1 | 1 . . Swarmer 3 | . . 3 Subdweller 3 | . . 3 Best Kill Streak 4 | 2 . 4 Combat Bots Only 4 | . . 4 Max Kills in Single Turn 2 | 1 . 2 Gunslinging . | . . . Exploded 2 | . . 2 Melee . | . . . Uniques/NPCs Destroyed . | . . . Combat | -11 -10 -10 -------- Run | Jun Mat Sub Damage Taken 1026 | . . 1026 Core 260 | . . 260 Absorbed by Shields . | . . . Core Remaining (%) 100 | 100 . . Volleys Fired 39 | 9 2 28 Largest 2 | 2 2 2 Hottest 60 | 60 60 59 Shots Fired 63 | 14 4 45 Gun 35 | 14 4 17 Cannon 20 | . . 20 Launcher 8 | . . 8 Special . | . . . Kinetic 56 | 9 2 45 Thermal 7 | 5 2 . Explosive . | . . . Electromagnetic . | . . . Robot Hit Streak 9 | 5 2 9 Robot Miss Streak 3 | 1 2 3 Penetration Max . | . . . Secondary Targets . | . . . Shots Hit Robots 39 | 10 2 27 Core Hits 12 | 4 1 7 Critical Kills . | . . . Critical Parts Destroyed . | . . . Critical Strikes . | . . . Melee Attacks . | . . . Impact . | . . . Slashing . | . . . Piercing . | . . . Sneak Attacks . | . . . Combat Hostiles . | . . . Follow-up Attacks . | . . . Damage Inflicted 986 | 118 25 843 Guns 235 | 118 25 92 Cannons 185 | . . 185 Explosions 566 | . . 566 Melee . | . . . Ramming . | . . . Kinetic 931 | 74 14 843 Thermal 55 | 44 11 . Explosive . | . . . Electromagnetic . | . . . Impact . | . . . Slashing . | . . . Piercing . | . . . Highest Corruption . | . . . Average Corruption . | . . . Corruption Purged . | . . . Corruption Blocked . | . . . Overload Shots . | . . . Overflow Damage 30 | . . 30 Projectiles . | . . . Explosions 30 | . . 30 Melee . | . . . Knockbacks 3 | . . 3 Impact . | . . . Kinetic 3 | . . 3 Secondary . | . . . Self-Inflicted Damage 210 | . . 210 Shots 6 | . . 6 Rammed . | . . . Targets Rammed . | . . . Kicked . | . . . Crushed . | . . . Highest Temperature . | . . . Average Temperature . | . . . Received Heat Transfer 72 | . . 72 Siege Activations . | . . . Robots Corrupted . | . . . Combat Hostiles . | . . . Parts Fried . | . . . Impact Corruptions . | . . . Robots Melted . | . . . Combat Hostiles . | . . . Parts Melted . | . . . Heat Transferred 125 | 100 25 . Parts Sabotaged . | . . . Parts Stolen . | . . . Parts Stripped . | . . . Power Chain Reactions . | . . . Missiles Intercepted . | . . . Alert | -11 -10 -10 ------- Run | Jun Mat Sub Peak Influence 24 | 15 24 . Initial 9 | . 9 . Average 12 | 7 23 . Maximum Alert Level . | . . . Low Security (%) 100 | 100 100 . Level 1 . | . . . Level 2 . | . . . Level 3 . | . . . Level 4 . | . . . Level 5 . | . . . High Security . | . . . Max Security . | . . . Squads Dispatched 1 | . 1 . Investigation . | . . . Extermination . | . . . Reinforcement 1 | . 1 . Assault . | . . . Garrison . | . . . Intercept . | . . . Searches Triggered . | . . . Construction Impeded . | . . . Haulers Reinforced . | . . . Active Scanning Responses . | . . . Cargo Convoy Interrupts . | . . . Stealth | -11 -10 -10 --------- Run | Jun Mat Sub Distress Signals . | . . . Communications Jammed . | . . . Distress Signals . | . . . Times Spotted 8 | . 1 7 Peak Tracking Total 4 | . 1 4 Tactical Retreats . | . . . Traps | -11 -10 -10 ------- Run | Jun Mat Sub Traps Triggered . | . . . Indirectly . | . . . Trap Hack Attempts . | . . . Triggered . | . . . Disarmed . | . . . Reprogrammed . | . . . Reused . | . . . Traps Extracted . | . . . Installed . | . . . Triggered . | . . . Machines | -11 -10 -10 ---------- Run | Jun Mat Sub Machines Disabled . | . . . Max in Single Turn . | . . . Machines Repaired . | . . . Machines Sabotaged . | . . . Overloaded Fab Kills . | . . . Hacking | -11 -10 -10 --------- Run | Jun Mat Sub Machines Accessed . | . . . Terminals . | . . . Fabricators . | . . . Repair Stations . | . . . Recycling Units . | . . . Scanalyzers . | . . . Garrison Access . | . . . Total Hacks . | . . . Successful . | . . . Failed . | . . . Catastrophic . | . . . Database Lockouts . | . . . Manual . | . . . Terminals . | . . . Fabricators . | . . . Repair Stations . | . . . Recycling Units . | . . . Scanalyzers . | . . . Garrison Access . | . . . Terminal Hacks . | . . . Fabricator Hacks . | . . . Repair Station Hacks . | . . . Recycling Unit Hacks . | . . . Scanalyzer . | . . . Garrison Access Hacks . | . . . Unauthorized Hacks . | . . . Terminals . | . . . Fabricators . | . . . Repair Stations . | . . . Recycling Units . | . . . Scanalyzers . | . . . Garrison Access . | . . . Data Cores Recovered . | . . . Used . | . . . Hacking Detections . | . . . Full Trace Events . | . . . Feedback Events . | . . . Feedback Blocked . | . . . Robot Schematics Acquired . | . . . Robots Built . | . . . Authchips . | . . . Time . | . . . Total Robot Build Rating . | . . . Part Schematics Acquired . | . . . Parts Built . | . . . Authchips . | . . . Time . | . . . Total Part Build Rating . | . . . Parts Repaired . | . . . Time . | . . . Parts Recycled . | . . . Recycled Matter . | . . . Retrieved Matter . | . . . Retrieved Components . | . . . Parts Scanalyzed . | . . . Part Schematics Acquired . | . . . Parts Damaged . | . . . Bothacking | -11 -10 -10 ------------ Run | Jun Mat Sub Used RIF Installer . | . . . Robots Hacked . | . . . Non-combat . | . . . Combat . | . . . Robot Hacks Applied . | . . . Relay Couplers Released . | . . . Fabnet Peak Effective % . | . . . Robots Rewired . | . . . Allies Hacked . | . . . Hacks Repelled . | . . . Allies | -11 -10 -10 -------- Run | Jun Mat Sub Total Allies . | . . . Largest Group . | . . . Highest-Rated Group . | . . . Highest-Rated Ally . | . . . Total Orders . | . . . Ally Attacks . | . . . Total Damage . | . . . Kills . | . . . Allies Corrupted . | . . . Allies Melted . | . . . Intel | -11 -10 -10 ------- Run | Jun Mat Sub Robot Analysis Total . | . . . Derelict Logs Recovered . | . . . Drone Launches . | . . . Drone Recoveries . | . . . Exploration | -11 -10 -10 ------------- Run | Jun Mat Sub Turns Passed 796 | 146 70 580 Spaces Moved 409 | 67 41 301 Core 1 | 1 . . Treads 406 | 64 41 301 Legs . | . . . Wheels 2 | 2 . . Hover . | . . . Flight . | . . . Fastest Speed 50 | 50 160 160 Average Speed 159 | 155 160 160 Slowest Speed 160 | 160 160 160 Overloaded Moves . | . . . Propulsion Burnouts . | . . . Robots Hopped . | . . . Cave-ins Triggered . | . . . Exploration Rate (%) 10 | 5 7 19 Regions Visited 2 Branch Regions 1 Pre-discovered Areas . | . . . Known Exits Taken . | . . . Unknown Exits Taken 2 | 1 1 . Scrap Searched 1 | . . 1 Spaces Dug 18 | . . 18 Terrain Destroyed 80 | . . 80 Melee . | . . . Projectile . | . . . AOE 80 | . . 80 Terrain Rammed . | . . . Walls Destroyed . | . . . Machines Disabled . | . . . Actions | -11 -10 -10 --------- Run | Jun Mat Sub Total 489 | 92 42 355 Wait 14 | . . 14 Move 407 | 66 40 301 Hop . | . . . Pick Up 11 | 8 . 3 Fast Attach 9 | 6 . 3 Attach 2 | 2 . . Detach 1 | 1 . . Swap 2 | . . 2 Drop 4 | . . 4 Fire 39 | 9 2 28 Melee . | . . . Ram . | . . . Kick . | . . . Crush . | . . . Escape Stasis . | . . . Rewire . | . . . Trap . | . . . Miscellaneous . | . . . Route ------- -11/Junkyard -10/Materials -10/Subcaves (discovered 2 exits: [*Mat x2]) History --------- Turn | Location | Event 31 | -11/Junkyard | Discovered new exit (range 15) 147 | -11/Junkyard | Entered Materials 208 | -10/Materials | Discovered new exit (range 6) 217 | -10/Materials | Entered Subcaves 243 | -10/Subcaves | Discovered new exit (range 13) 300 | -10/Subcaves | Build established: Mutant 507 | -10/Subcaves | Discovered new exit (range 8) 544 | -10/Subcaves | Shifting Twisted Machinery released Battle Cannon 712 | -10/Subcaves | Core integrity fell below 50% 775 | -10/Subcaves | Ambushed by Subdweller buried in earth 790 | -10/Subcaves | Core integrity fell below 20% 797 | -10/Subcaves | Destroyed by 15-CHJ(R) with Subdweller Machine Gun Last Messages --------------- 00718_ Acquired Sub. Shrapnel Launcher. 00721_ Acquired Sub. Power Source. 00723_ Lgt. Assault Rifle fries itself beyond repair. 00724_ Lgt. Ion Engine fries itself beyond repair. 00727_ Flight Unit fries itself beyond repair. 00742_ HG-BZU(R) destroyed. 00756_ Dropped Com. Wheel. 00756_ Acquired Sub. Monowheel. 00757_ Acquired 40 matter. 00772_ 15-CHJ(R): "NOSTUCKSUB!" 00775_ Lgt. Treads destroyed. 00776_ Q9-5YZ(R): "ARGHSUB!" 00777_ Assault Rifle destroyed. 00777_ Destroyed Scrap Shield. 00779_ 67-9OH(R) destroyed. 00783_ Critical hit (Destroy). 00783_ Sub. Shrapnel Launcher destroyed. 00785_ Sub. Power Source destroyed. 00794_ 15-CHJ(R) affixes Scrap Shield Fragment to Scrap Shield. 00795_ Lgt. Treads destroyed. Map ----- +----------------------------------------------------+ | ?????????????????????????????????????????????????? | | ?????????????????????????????????????????????????? | | ?????????????????????????????????????????????????? | | ?????????????????????????????????????????????????? | | ?????????????????????????????????????????????????? | | ?????????????????????????????????????????????????? | | ?????????????????????????????????????????????????? | | ?????????????????????????????????????????????????? | | ?????????????????????????????????????????????????? | | ?????????????????????????????????????????????????? | | ?????????????????????????????????????????????????? | | ?????????????????????????????????????????????????? | | ?????????????????????????????????????????????????? | | ?????????????????????????##????# ????????????????? | | ????????????????????????? ##???" ?????????????? | | ?????????????????????????% ### "" ??????????????? | | ??????????????????????### # # " ???????????????? | | ??????????????????????# "#??????????????? | | ?????????????????????## """??????????????? | | ?????????????????????# "#??????????????? | | ?????????????????????# #??????????????? | | ????????????????????## #?????####???????? | | ????????????????????# RR #????##""###?????? | | ????????????????????## #????#""$#$###???? | | ????????????????????#; #????#" [ $"#???? | | ????????????????????#; @ ; #????##" """#???? | | ??????????????????#% # ####??###" %" #???? | | ???????????????? ### ;; #### " """####? | | ??????????????# #??# &;; # !" ## | | ??????????????## ###% ???## ; & &;## % # | | ???????????????#???###????##;;&& = | | ???????????????????????????# ; | | ??????????????????????????# | | ??????????????????????????# "" | | ??????????????????????????### ## "" "## ## | | ????????????????????????????#### "####? | | ???????????????????????????????# "#???? | | ???????????????????????????????### ###???# | | ?????????????????????????????????# #####?????# | | ?????????????????????????????????# #?????????# | | ????????????????????????????????? ?????????? | | ???????????????????????????????? #????????? | | ??????????????????????????????? #????????? | | ??????????????????????????????? #????????? | | ??????????????????????????????? ????????? | | ???????????????????????????????? ????????? | | ????????????????????????????????? ## ?????????? | | ?????????????????????????????????????????????????? | | ?????????????????????????????????????????????????? | | ?????????????????????????????????????????????????? | +----------------------------------------------------+ Best States ------------- Heat Dissipation 25 Energy Generation 15 Energy Capacity 200 Matter Stores 297 Matter Capacity 300 Sight Range 16 Terrain Scan Density 10 Evasion (%) 40 Recoil Reduction 2 Item Schematics ----------------- None Robot Schematics ------------------ None Fabricated ------------ Nothing Alien Tech Used ----------------- None Achievements -------------- None Challenges ------------ None Game ------ Seed AerolevGuidedCharge Manual? 0 Play Time 00:07:37 Cumulative 135.3 hours Start 2023.08.07 @ 23:08:40 End 2023.08.07 @ 23:13:23 Sessions 1 Manual Loads 0 Difficulty Rogue Special Mode None Game No. 103 Rogue 103 Adventurer 0 Explorer 0 Win Type - Total 4 Types 2/0/1/1/0/0/0/0/0 Lore% 44 Gallery% 71 Achievement% 54 Wizard Run 0 Options --------- ASCII 0 Keyboard 1 Movement Vi Keybinds 1 Fullscreen 1 Font 18/SmallcapsGlow Map View 76x50 Tactical HUD 1 Map Filters NONE Filters NONE Steam 0 RUN: 799d9b78-5800-4acc-a56e-a3e8baad1058